bitfinex/quotes_SOLUSD_20251024
["timestamp","ask_amount","ask_price","bid_price","bid_amount"]
[1761280464812,6.22199621,194.47,194.42,0.12403046]
[1761280465037,6.22199621,194.48,194.42,0.12403046]
[1761280465338,6.22199621,194.44,194.42,0.12403046]
[1761280465837,0.69,194.49,194.43,0.12444221]
[1761280466159,6.22199621,194.46,194.43,0.12444221]
[1761280466315,5.14042767,194.54,194.43,0.12444221]
[1761280466514,6.22199621,194.44,194.43,0.12444221]
[1761280466717,0.69,194.53,194.43,0.12444221]
[1761280467052,6.22199621,194.44,194.4,0.12444221]
[1761280467212,10.87647521,194.52,194.32,0.82452118]
[1761280467412,6.22199621,194.4,194.32,0.82452118]
[1761280467608,11.53647521,194.52,194.32,0.82452118]
[1761280467609,0.66,194.51,194.32,0.82452118]
[1761280468146,10.87647521,194.49,194.32,0.12452118]
[1761280468325,6.22199621,194.37,194.32,0.12452118]
[1761280468521,0.66,194.48,194.32,0.12452118]
[1761280468724,6.22199621,194.33,194.32,0.12452118]
[1761280469112,6.88199621,194.33,194.31,43.68]
[1761280469445,23.52283877,194.45,194.31,43.68]
[1761280469446,6.88199621,194.32,194.31,43.68]
[1761280469824,6.88199621,194.32,194.28,0.12517651]
[1761280470030,0.66,194.35,194.28,0.12517651]
[1761280470325,6.22199621,194.29,194.28,0.12517651]
[1761280470637,6.22199621,194.29,194.25,0.1254051]
[1761280470949,6.22199621,194.26,194.18,43.56]
[1761280471162,0.66,194.28,194.19,0.12587778]
[1761280471362,6.22199621,194.2,194.19,0.12587778]
[1761280471649,0.66,194.27,194.19,0.12587778]
[1761280471650,6.22199621,194.21,194.19,0.12587778]
[1761280471859,0.66,194.26,194.19,0.12587778]
[1761280472026,6.22199621,194.2,194.19,0.12587778]
[1761280472529,33.75647521,194.33,194.19,0.12587778]
[1761280472734,0.66,194.33,194.21,22.88]
[1761280472942,6.22199621,194.28,194.22,0.1255335]
[1761280473226,6.22199621,194.26,194.22,0.1255335]
[1761280473623,12.8585652,194.43,194.23,0.72]
[1761280473853,6.22199621,194.27,194.24,0.12516184]
[1761280474034,6.22199621,194.25,194.24,0.12516184]
[1761280474345,6.22199621,194.26,194.24,0.12516184]
[1761280474556,10.87647521,194.36,194.25,0.6]
[1761280474859,11.51961165,194.36,194.25,0.6]
[1761280475056,6.22199621,194.26,194.21,22.88]
[1761280475232,6.22199621,194.24,194.22,0.12576214]
[1761280476036,6.22199621,194.25,194.22,0.12576214]
[1761280476563,0.66,194.37,194.23,0.72]
[1761280476729,0.66,194.36,194.24,0.12534121]
[1761280476932,0.66,194.36,194.24,11.00181642]
[1761280477239,6.22199621,194.3,194.24,0.12534121]
[1761280477937,6.22199621,194.28,194.24,0.12534121]
[1761280478128,6.22199621,194.26,194.23,0.12558038]
[1761280478550,6.22199621,194.24,194.23,0.12558038]
[1761280478860,0.66,194.3,194.23,0.12558038]
[1761280479157,6.22199621,194.27,194.24,0.12555047]
[1761280479356,0.66,194.3,194.24,0.12555047]
[1761280479558,6.22199621,194.28,194.24,0.12555047]
[1761280479776,0.66,194.34,194.24,0.84555047]
[1761280480256,6.22199621,194.31,194.24,0.84555047]
[1761280480857,170.94382319,194.41,194.24,0.12555047]
[1761280480858,6.22199621,194.28,194.24,0.12555047]
[1761280481070,0.66,194.32,194.23,0.12558037]
[1761280481371,6.22199621,194.27,194.23,0.12558037]
[1761280481569,0.66,194.32,194.23,0.12558037]
[1761280481769,6.22199621,194.29,194.23,0.12558037]
[1761280482069,6.22199621,194.32,194.24,0.1255933]
[1761280482255,6.22199621,194.31,194.24,0.1255933]
[1761280482454,0.71,194.36,194.24,0.1255933]
[1761280482455,6.22199621,194.3,194.24,0.1255933]
[1761280482663,6.22199621,194.29,194.24,0.1255933]
[1761280482850,6.22199621,194.28,194.24,0.1255933]
[1761280483045,6.22199621,194.26,194.24,43.2255933]
[1761280483346,6.22199621,194.29,194.24,43.9155933]
[1761280483655,6.22199621,194.28,194.24,43.2255933]
[1761280483850,0.71,194.31,194.24,43.2255933]
[1761280484058,6.22199621,194.25,194.24,43.2255933]
[1761280484365,6.22199621,194.26,194.24,43.2255933]
[1761280484560,6.22199621,194.25,194.24,43.2255933]
[1761280484741,4.07283475,194.25,194.24,43.2255933]
[1761280485153,4.07283475,194.26,194.24,43.2255933]
[1761280485557,4.07283475,194.25,194.24,43.2255933]
[1761280485872,4.07283475,194.26,194.24,43.2255933]
[1761280486072,4.07283475,194.27,194.24,43.2255933]
[1761280487175,4.07283475,194.26,194.24,43.2255933]
[1761280487554,0.71,194.36,194.25,0.69]
[1761280487754,165.8,194.41,194.26,0.12529841]
[1761280487755,3.57283475,194.31,194.26,0.12529841]
[1761280487959,4.07283475,194.4,194.26,0.12529841]
[1761280487960,4.07283475,194.29,194.26,0.12529841]
[1761280488159,4.07283475,194.28,194.26,0.12529841]
[1761280488674,4.78283475,194.27,194.25,0.12550766]
[1761280488877,4.07283475,194.26,194.25,0.12550766]
[1761280489374,4.07283475,194.28,194.25,0.12550766]
[1761280489980,4.07283475,194.27,194.25,0.12550766]
[1761280490387,4.07283475,194.3,194.25,0.12550766]
[1761280490760,0.71,194.3,194.25,0.12550766]
[1761280490970,0.71,194.33,194.25,0.12550766]
[1761280491172,4.07283475,194.29,194.25,0.12550766]
[1761280491374,4.07283475,194.32,194.25,0.81550766]
[1761280491583,4.07283475,194.31,194.25,0.81550766]
[1761280491773,4.07283475,194.29,194.25,0.12550766]
[1761280492158,4.07283475,194.28,194.25,0.12550766]
[1761280493389,4.07283475,194.26,194.25,0.12550766]
[1761280493562,4.07283475,194.27,194.25,0.12550766]
[1761280494179,0.71,194.43,194.31,22.88]
[1761280494386,0.71,194.43,194.35,22.88]
[1761280494584,4.78283475,194.46,194.36,0.12472604]
[1761280494873,4.07283475,194.42,194.37,42.68]
[1761280495066,4.07283475,194.4,194.38,0.12468333]
[1761280495377,4.07283475,194.4,194.37,42.68]
[1761280495577,0.71,194.39,194.37,42.68]
[1761280497002,5.78508654,194.47,194.37,42.68]
[1761280497320,4.07283475,194.49,194.38,0.81477295]
[1761280497487,0.71,194.46,194.38,0.12477295]
[1761280500096,4.07283475,194.41,194.38,42.46]
[1761280500466,1.35280571,194.46,194.39,0.69]
[1761280500467,0.64280571,194.46,194.39,0.69]
[1761280500700,0.71,194.53,194.41,22.88]
[1761280500899,311.7,194.65,194.42,23.00420967]
[1761280501109,0.71,194.57,194.42,23.69420967]
[1761280501318,0.64211229,194.67,194.46,22.88]
[1761280501491,4.07283475,194.59,194.47,29.4736104]
[1761280501692,1.35211229,194.67,194.5,22.88]
[1761280502018,4.07283475,194.51,194.44,0.12348461]
[1761280502199,4.78283475,194.5,194.44,0.12348461]
[1761280502512,4.78283475,194.5,194.43,42.38]
[1761280502513,4.07283475,194.46,194.43,42.38]
[1761280502716,0.71,194.62,194.47,33.75647521]
[1761280502925,0.71,194.68,194.48,0.12372347]
[1761280503093,6.04533687,194.67,194.53,33.75647521]
[1761280503297,6.04533687,194.64,194.54,0.12335697]
[1761280503518,0.71,194.67,194.54,0.12335697]
[1761280503695,6.04533687,194.65,194.55,30.14]
[1761280503898,6.04533687,194.65,194.56,0.12334429]
[1761280504097,0.71,194.64,194.56,0.12334429]
[1761280504617,0.71,194.64,194.57,42.42]
[1761280504869,0.71,194.64,194.58,0.12333346]
[1761280505609,0.71,194.68,194.58,0.12333346]
[1761280505810,0.71,194.68,194.58,0.81333346]
[1761280506115,0.15,194.69,194.6,22.88]
[1761280506302,0.71,194.68,194.61,42.44304406]
[1761280507223,0.71,194.68,194.62,42.28]
[1761280507423,0.71,194.68,194.62,42.4030079]
[1761280508429,0.71,194.68,194.63,0.1230395]
[1761280509105,0.71,194.68,194.63,0.1230395]
[1761280509319,0.15,194.69,194.63,0.1230395]
[1761280509533,0.86,194.69,194.63,0.1230395]
[1761280510202,6.04533687,194.68,194.63,0.1230395]
[1761280510400,6.04533687,194.68,194.63,21.48]
[1761280510607,0.71,194.67,194.64,0.12296543]
[1761280510929,0.71,194.67,194.63,21.48]
[1761280511145,0.71,194.67,194.64,0.12302685]
[1761280511440,0.71,194.67,194.59,0.12302685]
[1761280511654,6.04533687,194.65,194.59,0.12302685]
[1761280511815,6.04533687,194.61,194.54,0.12321225]
[1761280512015,33.90647521,194.69,194.55,22.57]
[1761280512016,0.72,194.68,194.55,22.57]
[1761280512311,6.04533687,194.68,194.59,22.88]
[1761280512514,6.04533687,194.66,194.6,0.12311006]
[1761280512729,0.72,194.68,194.6,0.12311006]
[1761280512730,6.76533687,194.68,194.61,42.1]
[1761280512941,6.76533687,194.68,194.62,0.12303774]
[1761280513639,0.72,194.68,194.62,0.12303774]
[1761280513842,6.04533687,194.64,194.61,0.12303774]
[1761280514137,6.04533687,194.64,194.61,8.12]
[1761280514342,0.72,194.63,194.61,8.12]
[1761280514513,0.72,194.63,194.55,0.12316978]
[1761280514716,6.04533687,194.61,194.56,0.74]
[1761280514916,6.04533687,194.61,194.57,0.12344015]
[1761280515152,0.15,194.69,194.51,0.69]
[1761280515153,0.72,194.6,194.52,0.12344015]
[1761280515344,10.87647521,194.67,194.53,9.57]
[1761280515540,6.04533687,194.6,194.54,0.12335697]
[1761280516039,6.04533687,194.58,194.54,0.12335697]
[1761280516262,6.04533687,194.6,194.54,0.12335697]
[1761280516852,6.04533687,194.57,194.54,0.12335697]
[1761280517429,16.01395961,194.65,194.53,8.88]
[1761280517747,6.76533687,194.57,194.54,0.12341667]
[1761280518050,6.04533687,194.59,194.54,0.12364468]
[1761280518256,6.04533687,194.55,194.53,9.00364468]
[1761280519349,0.64217826,194.65,194.45,0.12373424]
[1761280519350,6.76533687,194.54,194.45,0.12373424]
[1761280519633,6.04533687,194.52,194.46,41.8]
[1761280519853,6.04533687,194.48,194.46,0.12407101]
[1761280520051,6.04533687,194.48,194.34,0.69]
[1761280520239,6.04533687,194.41,194.35,41.90462572]
[1761280520558,1.36250835,194.55,194.36,41.76]
[1761280520733,1.36250835,194.55,194.37,0.12433125]
[1761280520938,6.04533687,194.42,194.37,0.12433125]
[1761280521430,6.04533687,194.4,194.37,0.12433125]
[1761280521758,6.04533687,194.46,194.37,0.12433125]
[1761280521759,0.72,194.41,194.37,0.12433125]
[1761280522054,6.04533687,194.38,194.37,0.12433125]
[1761280522443,6.04533687,194.4,194.37,0.12433125]
[1761280523465,0.72,194.47,194.37,0.81433125]
[1761280523663,6.04533687,194.42,194.37,0.81433125]
[1761280523965,6.04533687,194.42,194.37,0.12433125]
[1761280525142,0.72,194.45,194.37,0.12433125]
[1761280525343,6.04533687,194.42,194.37,0.12433125]
[1761280525664,6.04533687,194.42,194.38,0.5]
[1761280525865,6.04533687,194.42,194.39,0.12465984]
[1761280526246,6.04533687,194.41,194.39,0.12465984]
[1761280526447,6.04533687,194.4,194.37,0.12465984]
[1761280526862,6.04533687,194.39,194.37,0.12465984]
[1761280527036,0.64270656,194.49,194.37,0.12465984]
[1761280527243,6.04533687,194.44,194.37,0.81465984]
[1761280527465,6.04533687,194.41,194.37,0.12465984]
[1761280529062,6.04533687,194.38,194.36,41.88474529]
[1761280529567,0.67,194.4,194.36,41.88474529]
[1761280529568,6.04533687,194.4,194.36,41.88474529]
[1761280530154,0.67,194.43,194.37,0.12480504]
[1761280530357,6.04533687,194.41,194.37,0.12480504]
[1761280530552,0.67,194.45,194.37,0.12480504]
[1761280530869,6.04533687,194.42,194.37,0.12480504]
[1761280531246,6.04533687,194.44,194.37,0.83480504]
[1761280531647,0.67,194.45,194.37,0.83480504]
[1761280531858,6.71533687,194.45,194.37,0.83480504]
[1761280532347,6.04533687,194.48,194.39,22.88]
[1761280532546,0.67,194.49,194.4,0.12443154]
[1761280532744,0.67,194.49,194.4,0.83443154]
[1761280532745,6.04533687,194.48,194.4,0.83443154]
[1761280532971,0.67,194.49,194.4,0.83443154]
[1761280533158,6.04533687,194.48,194.4,0.83443154]
[1761280533557,6.04533687,194.46,194.4,0.12443154]
[1761280534351,6.71533687,194.46,194.4,0.12443154]
[1761280534559,0.67,194.45,194.4,0.12443154]
[1761280535160,6.04533687,194.46,194.4,0.12443154]
[1761280535874,6.04533687,194.46,194.41,0.5]
[1761280536068,6.04533687,194.46,194.42,41.18441874]
[1761280536852,6.71533687,194.46,194.42,41.18441874]
[1761280537277,0.67,194.45,194.42,41.18441874]
[1761280537775,6.04533687,194.44,194.42,41.06]
[1761280538366,6.71533687,194.43,194.42,41.06]
[1761280539070,6.71533687,194.43,194.34,0.12457457]
[1761280539262,6.04533687,194.37,194.34,0.12457457]
[1761280539565,6.04533687,194.38,194.34,26.82457457]
[1761280539873,6.04533687,194.38,194.34,26.7]
[1761280540080,6.71533687,194.38,194.34,26.7]
[1761280540265,17.56461779,194.46,194.34,26.7]
[1761280540266,6.04533687,194.36,194.34,26.7]
[1761280540472,6.04533687,194.36,194.27,0.12499723]
[1761280540653,6.04533687,194.32,194.28,40.88]
[1761280540859,6.04533687,194.34,194.29,0.12532182]
[1761280541067,0.68,194.38,194.29,0.84532182]
[1761280541255,6.72533687,194.38,194.29,0.84532182]
[1761280541460,6.04533687,194.36,194.29,0.84532182]
[1761280541891,6.04533687,194.34,194.29,0.12532182]
[1761280542413,6.04533687,194.32,194.28,40.88]
[1761280542582,6.04533687,194.32,194.13,13.27439893]
[1761280542583,6.04533687,194.3,194.19,0.72]
[1761280542791,33.75647521,194.39,194.2,40.90572821]
[1761280542792,6.04533687,194.26,194.2,40.90572821]
[1761280543089,0.68,194.29,194.2,40.90572821]
[1761280543381,6.04533687,194.23,194.2,40.90572821]
[1761280543958,6.72533687,194.23,194.2,40.78]
[1761280544187,0.68,194.22,194.2,40.78]
[1761280544388,0.68,194.22,194.17,0.2]
[1761280544572,6.04533687,194.18,194.17,0.2]
[1761280545194,0.68,194.18,194.17,0.2]
[1761280545558,6.72533687,194.18,194.17,0.2]
[1761280545789,12.77067374,194.18,194.11,0.2]
[1761280545969,6.04533687,194.12,194.11,0.2]
[1761280546176,0.68,194.17,194.11,0.2]
[1761280546382,6.04533687,194.12,194.11,0.2]
[1761280546587,0.68,194.16,194.11,0.2]
[1761280546889,6.04533687,194.12,194.11,0.2]
[1761280547272,6.72533687,194.12,194.11,0.2]
[1761280547471,6.04533687,194.12,194.11,0.2]
[1761280547870,6.72533687,194.12,194.11,0.2]
[1761280548075,6.04533687,194.12,194.11,0.2]
[1761280548376,6.72533687,194.12,194.11,0.2]
[1761280550298,6.04533687,194.13,194.11,0.2]
[1761280550684,0.68,194.12,194.11,0.2]
[1761280551289,0.68,194.12,194.07,0.1265412]
[1761280551488,0.64396476,194.11,194.04,0.2]
[1761280551691,6.04533687,194.05,194.04,0.2]
[1761280552603,6.04533687,194.01,193.92,0.72]
[1761280552898,0.68,194.04,193.93,0.12758049]
[1761280553274,6.04533687,193.99,193.94,0.72]
[1761280553495,6.04533687,193.98,193.95,0.12753459]
[1761280553871,6.04533687,193.96,193.91,0.72]
[1761280554195,6.04533687,193.94,193.92,0.12778003]
[1761280554606,6.04533687,193.94,193.92,0.84778003]
[1761280554780,6.04533687,193.93,193.92,0.84778003]
[1761280554975,6.04533687,193.93,193.92,0.12778003]
[1761280555183,0.68,194.0,193.92,0.72]
[1761280555480,6.04533687,193.95,193.93,0.12757769]
[1761280555680,0.68,194.0,193.93,0.12757769]
[1761280555890,6.04533687,193.96,193.93,0.84757769]
[1761280556103,0.68,194.0,193.93,0.84757769]
[1761280556314,6.04533687,193.95,193.93,0.84757769]
[1761280556695,0.68,194.04,193.93,0.84757769]
[1761280556894,6.04533687,193.99,193.93,0.84757769]
[1761280557101,6.04533687,193.98,193.93,0.84757769]
[1761280557394,6.04533687,194.0,193.93,0.84757769]
[1761280558611,0.68,194.1,193.97,22.88]
[1761280558814,6.04533687,194.06,193.98,40.38709578]
[1761280559112,0.68,194.1,193.98,41.10709578]
[1761280559400,6.04533687,194.07,193.99,0.72]
[1761280559613,6.04533687,194.05,194.0,0.12712571]
[1761280560085,6.04533687,194.05,194.01,0.72]
[1761280560285,6.04533687,194.06,194.02,0.1270995]
[1761280560687,6.04533687,194.06,194.02,0.8470995]
[1761280561211,6.04533687,194.05,193.99,0.1270995]
[1761280561528,6.04533687,194.03,193.99,0.8470995]
[1761280561835,6.04533687,194.04,193.99,0.8470995]
[1761280562010,0.68,194.09,193.99,0.8470995]
[1761280562326,6.04533687,194.09,194.01,22.88]
[1761280562630,6.04533687,194.07,194.02,0.12697979]
[1761280563016,6.04533687,194.07,194.02,0.84697979]
[1761280563609,6.04533687,194.06,194.02,0.84697979]
[1761280563924,6.04533687,194.06,194.02,0.12697979]
[1761280564128,6.04533687,194.05,194.02,0.12697979]
[1761280564311,6.04533687,194.03,194.0,0.12703965]
[1761280564510,6.04533687,194.02,193.98,40.98]
[1761280564711,4.08245249,194.02,193.99,0.12735863]
[1761280565128,4.08245249,194.01,193.98,40.98]
[1761280565305,4.08245249,193.99,193.91,0.72]
[1761280565503,4.08245249,193.94,193.92,17.7076573]
[1761280565726,4.08245249,193.93,193.92,17.58]
[1761280566030,4.08245249,193.97,193.92,0.72]
[1761280566214,4.08245249,193.97,193.93,0.84766752]
[1761280566527,4.08245249,193.94,193.91,36.62766752]
[1761280566725,0.68,193.98,193.91,36.62766752]
[1761280566929,0.68,194.02,193.92,0.72]
[1761280567112,4.08245249,193.96,193.92,0.84751779]
[1761280567313,4.08245249,193.95,193.91,36.5]
[1761280567630,4.08245249,193.94,193.91,36.5]
[1761280568336,4.08245249,193.93,193.91,36.5]
[1761280568516,4.08245249,193.92,193.88,39.92]
[1761280568723,0.68,193.93,193.88,39.92]
[1761280568724,4.08245249,193.91,193.88,39.92]
[1761280568931,4.08245249,193.9,193.88,39.92]
[1761280569408,4.08245249,193.89,193.88,39.92]
[1761280570414,4.08245249,193.89,193.85,0.72]
[1761280571104,4.08245249,193.88,193.84,40.0080431]
[1761280571306,4.08245249,193.85,193.84,39.88]
[1761280571612,4.08245249,193.85,193.78,39.84]
[1761280571832,4.08245249,193.85,193.75,0.69]
[1761280571833,4.08245249,193.81,193.79,39.84]
[1761280572448,4.08245249,193.8,193.79,39.84]
[1761280572632,0.68,193.81,193.79,39.84]
[1761280572928,4.08245249,193.82,193.79,39.84]
[1761280573131,4.08245249,193.87,193.8,0.81859212]
[1761280573319,4.08245249,193.85,193.8,0.12859212]
[1761280573524,4.08245249,193.83,193.8,0.12859212]
[1761280573715,4.08245249,193.86,193.8,0.12859212]
[1761280574035,4.08245249,193.86,193.8,0.81859212]
[1761280574208,4.08245249,193.85,193.8,0.12859212]
[1761280574841,0.68,193.85,193.8,0.12859212]
[1761280575030,4.08245249,193.86,193.8,0.12859212]
[1761280575330,4.08245249,193.87,193.8,0.81859212]
[1761280575725,4.08245249,193.85,193.8,0.12859212]
[1761280576310,4.08245249,193.86,193.8,0.81859212]
[1761280577346,4.08245249,193.86,193.8,0.12859212]
[1761280577641,4.08245249,193.85,193.8,0.12859212]
[1761280577845,1.32462895,193.91,193.8,0.12859212]
[1761280578009,4.08245249,193.84,193.8,0.12859212]
[1761280578441,4.08245249,193.83,193.8,0.12859212]
[1761280579333,0.68,193.82,193.79,39.84]
[1761280579539,11.55647521,193.9,193.79,39.96864521]
[1761280579728,11.55647521,193.9,193.79,40.65864521]
[1761280579729,4.08245249,193.85,193.79,40.65864521]
[1761280580050,4.08245249,193.92,193.79,40.65864521]
[1761280580051,0.68,193.89,193.8,0.81850223]
[1761280580335,4.08245249,193.86,193.8,0.81850223]
[1761280581154,0.68,193.96,193.82,22.88]
[1761280581447,4.08245249,193.95,193.83,0.12806293]
[1761280581629,4.08245249,193.9,193.84,22.88]
[1761280581829,4.08245249,193.9,193.85,39.70818274]
[1761280582245,4.08245249,193.89,193.85,39.70818274]
[1761280582742,4.08245249,193.86,193.85,39.58]
[1761280583046,4.08245249,193.9,193.85,40.27]
[1761280583228,0.64446277,193.96,193.85,40.27]
[1761280583229,4.08245249,193.91,193.85,39.58]
[1761280583915,4.08245249,193.87,193.85,39.58]
[1761280584841,5.79961524,193.98,193.85,39.58]
[1761280584842,4.76245249,193.86,193.85,39.58]
[1761280585041,0.68,193.86,193.85,39.58]
[1761280585224,4.76245249,193.86,193.85,39.58]
[1761280585740,4.76245249,193.86,193.81,39.5]
[1761280585936,4.08245249,193.82,193.81,39.5]
[1761280586244,0.68,193.9,193.81,39.5]
[1761280586437,0.68,193.9,193.82,0.81827925]
[1761280586738,4.08245249,193.91,193.82,0.81827925]
[1761280587142,0.68,193.93,193.82,0.81827925]
[1761280587143,4.08245249,193.93,193.82,0.81827925]
[1761280587844,0.68,193.94,193.84,22.88]
[1761280588150,4.08245249,193.95,193.85,0.12804971]
[1761280588326,4.08245249,193.92,193.85,0.81804971]
[1761280588529,4.08245249,193.93,193.85,0.81804971]
[1761280590341,0.68,193.95,193.85,0.81804971]
[1761280590657,4.76245249,193.95,193.85,0.81804971]
[1761280591555,4.08245249,193.94,193.85,0.81804971]
[1761280591731,4.08245249,193.93,193.85,0.81804971]
[1761280591931,4.08245249,193.92,193.85,0.81804971]
[1761280592131,0.68,193.95,193.85,0.81804971]
[1761280592132,4.08245249,193.93,193.85,0.81804971]
[1761280592333,4.08245249,193.94,193.85,0.81804971]
[1761280592545,0.68,193.95,193.85,0.81804971]
[1761280592859,4.08245249,193.95,193.85,0.81804971]
[1761280593037,0.68,193.96,193.85,0.81804971]
[1761280593367,4.08245249,193.95,193.85,0.81804971]
[1761280593661,4.08245249,193.92,193.85,0.81804971]
[1761280594038,4.08245249,193.89,193.85,0.12804971]
[1761280594234,4.08245249,193.89,193.84,23.00807967]
[1761280594436,4.08245249,193.92,193.85,0.69]
[1761280594670,4.08245249,193.92,193.86,0.12808627]
[1761280596241,4.08245249,193.91,193.85,0.81808627]
[1761280597043,4.08245249,193.91,193.86,39.26]
[1761280597259,4.08245249,193.92,193.86,39.26]
[1761280597469,4.08245249,193.91,193.86,39.26]
[1761280597845,4.08245249,193.91,193.86,39.75]
[1761280598248,4.08245249,193.9,193.86,39.75]
[1761280598561,0.68,193.93,193.86,39.06]
[1761280598770,4.08245249,193.9,193.86,39.06]
[1761280599174,4.08245249,193.87,193.79,0.69]
[1761280599377,4.08245249,193.83,193.8,0.12845553]
[1761280599554,0.68,193.88,193.79,35.84]
[1761280599760,4.08245249,193.85,193.8,0.12841234]
[1761280599961,4.08245249,193.85,193.8,0.81841234]
[1761280600567,4.08245249,193.86,193.8,0.81841234]
[1761280600881,4.08245249,193.87,193.8,0.81841234]
[1761280601670,0.66,193.89,193.8,0.81841234]
[1761280601869,4.08245249,193.86,193.8,0.81841234]
[1761280602485,4.08245249,193.92,193.8,0.81841234]
[1761280602486,0.66,193.92,193.8,0.81841234]
[1761280602677,4.08245249,193.88,193.8,0.81841234]
[1761280602870,4.08245249,193.87,193.8,0.81841234]
[1761280603861,4.08245249,193.89,193.82,22.88]
[1761280604080,4.08245249,193.89,193.83,0.78827263]
[1761280604280,0.66,193.91,193.83,0.78827263]
[1761280604281,4.08245249,193.9,193.83,0.78827263]
[1761280604670,11.52083832,193.99,193.82,23.00821933]
[1761280604671,4.08245249,193.86,193.82,23.00821933]
[1761280604869,4.08245249,193.86,193.82,23.00838237]
[1761280605081,4.08245249,193.86,193.82,0.78838237]
[1761280605480,4.08245249,193.87,193.82,0.78838237]
[1761280606178,4.08245249,193.86,193.82,0.66]
[1761280606381,4.08245249,193.87,193.82,0.66]
[1761280607077,4.08245249,193.86,193.82,0.66]
[1761280607387,4.08245249,193.85,193.8,0.78838237]
[1761280607691,4.08245249,193.84,193.8,0.78838237]
[1761280608064,4.08245249,193.85,193.8,0.78838237]
[1761280608581,4.08245249,193.84,193.8,0.66]
[1761280608782,4.08245249,193.81,193.79,35.84]
[1761280609179,4.08245249,193.8,193.79,35.84]
[1761280609886,0.66,193.83,193.79,35.84]
[1761280610191,4.08245249,193.82,193.79,35.84]
[1761280610389,4.08245249,193.81,193.79,35.84]
[1761280610588,4.08245249,193.8,193.79,35.84]
[1761280611091,4.74245249,193.8,193.79,35.84]
[1761280611386,4.08245249,193.8,193.79,35.84]
[1761280611766,4.08245249,193.82,193.79,35.84]
[1761280611996,4.08245249,193.83,193.79,36.5]
[1761280612286,0.66,193.86,193.79,36.5]
[1761280612470,4.08245249,193.83,193.79,36.5]
[1761280613089,1.30469544,193.89,193.8,0.78856216]
[1761280613393,4.08245249,193.84,193.79,35.96856216]
[1761280613885,4.08245249,193.84,193.8,0.66]
[1761280614393,4.08245249,193.84,193.79,35.84]
[1761280614693,0.64462895,193.91,193.79,35.84]
[1761280614694,0.66,193.83,193.79,35.84]
[1761280614900,4.08245249,193.83,193.79,35.84]
[1761280615103,11.52110416,193.91,193.79,36.5]
[1761280615104,4.08245249,193.84,193.79,36.5]
[1761280615474,4.74245249,193.84,193.79,36.5]
[1761280615686,4.08245249,193.84,193.79,36.5]
[1761280616490,0.64466219,193.9,193.8,0.66]
[1761280616706,0.66,193.91,193.81,0.12831583]
[1761280616876,4.08245249,193.87,193.81,0.78831583]
[1761280617575,0.66,193.9,193.81,0.78831583]
[1761280617779,4.08245249,193.87,193.81,0.78831583]
[1761280618387,0.66,193.88,193.82,22.88]
[1761280618583,4.08245249,193.87,193.82,22.88]
[1761280619090,4.08245249,193.87,193.82,23.54]
[1761280619473,0.66,193.87,193.82,23.54]
[1761280619675,4.08245249,193.89,193.83,0.66]
[1761280619876,4.74245249,193.89,193.84,38.74]
[1761280620196,4.08245249,193.85,193.84,38.74]
[1761280620593,4.74245249,193.85,193.84,38.74]
[1761280620895,0.66,193.88,193.84,38.74]
[1761280621281,4.08245249,193.87,193.84,38.74]
[1761280621804,4.08245249,193.86,193.84,38.74]
[1761280622098,4.74245249,193.87,193.84,38.74]
[1761280622404,4.74245249,193.89,193.84,39.4]
[1761280622711,4.08245249,193.9,193.84,38.74]
[1761280623077,4.08245249,193.9,193.84,39.4]
[1761280623285,4.08245249,193.91,193.85,0.66]
[1761280623980,4.74245249,193.91,193.85,0.66]
[1761280624370,0.64446277,193.96,193.86,0.12810302]
[1761280624575,4.08245249,193.93,193.86,0.12810302]
[1761280624794,6.08730225,193.93,193.87,0.66]
[1761280626405,0.64439632,193.98,193.88,0.12797]
[1761280626710,6.08730225,193.96,193.88,0.12797]
[1761280626895,6.08730225,193.96,193.89,0.66]
[1761280627102,6.08730225,193.96,193.9,38.6]
[1761280627284,6.08730225,193.95,193.9,38.6]
[1761280627480,6.08730225,193.94,193.9,38.6]
[1761280627684,0.66,193.97,193.9,38.6]
[1761280627888,6.08730225,193.92,193.9,38.6]
[1761280628091,0.66,193.97,193.75,0.12797]